bitfinex-derivatives/quotes_SOLF0:USTF0_20220104
["timestamp","ask_amount","ask_price","bid_price","bid_amount"]
[1641338071523,12.56848481,168.32,168.28,4.0]
[1641338071824,27.66479,168.3,168.28,4.0]
[1641338072023,27.66479,168.3,168.25,63.4987]
[1641338072224,1.77538438,168.29,168.28,4.0]
[1641338073124,27.66479,168.3,168.28,4.0]
[1641338073525,27.66479,168.3,168.29,4.0]
[1641338073926,27.66479,168.3,168.23,5.172]
[1641338074127,27.66479,168.3,168.28,4.0]
[1641338075126,20.96103554,168.3,168.28,4.0]
[1641338075829,60.0426,168.33,168.28,4.0]
[1641338076329,60.0426,168.33,168.21,83.9091]
[1641338076529,66.1656,168.33,168.26,4.0]
[1641338077128,66.1656,168.33,168.21,59.9091]
[1641338077328,66.1656,168.33,168.26,4.0]
[1641338077529,1.83586437,168.32,168.27,2.35433198]
[1641338077928,27.66479,168.3,168.27,2.35433198]
[1641338080535,1.8363596,168.29,168.27,2.35433198]
[1641338082535,12.56848481,168.28,168.26,4.0]
[1641338083234,14.40484441,168.29,168.26,4.0]
[1641338083635,14.40484441,168.29,168.25,4.0]
[1641338083836,27.66479,168.27,168.25,4.0]
[1641338084538,77.53754441,168.29,168.25,4.0]
[1641338084738,1.8363596,168.26,168.25,4.0]
[1641338085337,14.40484441,168.28,168.25,4.0]
[1641338086137,14.40484441,168.28,168.21,59.9091]
[1641338087038,14.40484441,168.28,168.25,4.0]
[1641338087240,14.40484441,168.28,168.22,2.35419979]
[1641338087638,14.40484441,168.28,168.24,4.0]
[1641338089139,12.56848481,168.27,168.24,4.0]
[1641338093742,12.56848481,168.27,168.23,4.0]
[1641338094143,12.56848481,168.27,168.26,4.0]
[1641338094343,12.56848481,168.27,168.26,9.881]
[1641338094645,1.8363596,168.28,168.26,5.881]
[1641338095544,1.8363596,168.28,168.21,59.9091]
[1641338095744,1.8363596,168.28,168.25,4.0]
[1641338095944,1.8363596,168.28,168.21,59.9091]
[1641338096146,27.66479,168.27,168.21,59.9091]
[1641338096946,63.1327,168.29,168.18,4.0]
[1641338097147,63.1327,168.29,168.25,4.0]
[1641338097546,1.82871906,168.28,168.25,4.0]
[1641338099851,1.82871906,168.28,168.2,53.3151]
[1641338100050,27.66479,168.26,168.2,53.3151]
[1641338100255,27.66479,168.26,168.17,31.66479]
[1641338101055,27.66479,168.26,168.2,4.17245393]
[1641338101552,27.66479,168.26,168.23,4.0]
[1641338103552,27.66479,168.26,168.23,8.17245393]
[1641338103753,1.83706516,168.25,168.23,8.17245393]
[1641338105957,1.83706516,168.25,168.23,4.17245393]
[1641338107059,1.83706516,168.25,168.22,8.17245393]
[1641338110062,1.83706516,168.25,168.23,4.0]
[1641338110261,1.83706516,168.25,168.23,10.018]
[1641338110765,1.83706516,168.25,168.24,4.0]
[1641338112164,12.56848481,168.28,168.24,10.52666541]
[1641338112766,12.56848481,168.28,168.24,6.52666541]
[1641338112965,12.56848481,168.28,168.24,10.52666541]
[1641338113167,14.40554997,168.29,168.25,6.52666541]
[1641338114468,12.56848481,168.28,168.24,4.17245393]
[1641338114667,12.56848481,168.28,168.24,8.17245393]
[1641338115169,14.40554997,168.28,168.24,8.17245393]
[1641338116670,12.56848481,168.27,168.24,4.0]
[1641338117872,14.40554997,168.28,168.24,8.17245393]
[1641338118274,14.40554997,168.28,168.27,4.0]
[1641338118472,33.44240804,168.32,168.27,13.521]
[1641338118677,33.44240804,168.32,168.31,4.0]
[1641338118873,33.44240804,168.32,168.31,9.501]
[1641338119475,7.34228112,168.35,168.31,9.501]
[1641338120375,33.44240804,168.37,168.31,9.501]
[1641338121474,7.34228112,168.37,168.31,9.501]
[1641338122377,7.34228112,168.37,168.31,5.501]
[1641338123376,7.34228112,168.37,168.36,4.0]
[1641338123577,7.34228112,168.37,168.36,10.621]
[1641338123978,27.66479,168.4,168.36,10.621]
[1641338124577,27.66479,168.4,168.39,4.0]
[1641338124777,33.44240804,168.41,168.39,4.0]
[1641338124977,33.44240804,168.43,168.39,4.0]
[1641338125177,33.44240804,168.43,168.36,6.621]
[1641338125580,33.44240804,168.43,168.42,4.0]
[1641338125781,33.44240804,168.43,168.42,10.343]
[1641338126681,40.77875914,168.44,168.42,10.343]
[1641338127082,40.77875914,168.44,168.43,4.0]
[1641338127882,40.77875914,168.44,168.42,6.343]
[1641338128083,40.77875914,168.44,168.43,4.0]
[1641338128284,40.77875914,168.44,168.37,27.66479]
[1641338128685,40.77875914,168.46,168.38,4.17245393]
[1641338129188,40.77875914,168.46,168.38,10.63345393]
[1641338130188,40.77875914,168.46,168.38,14.63345393]
[1641338130388,27.66479,168.42,168.38,14.63345393]
[1641338130989,7.3363511,168.41,168.38,6.461]
[1641338131189,7.3363511,168.41,168.36,4.17245393]
[1641338131689,33.44240804,168.4,168.34,4.0]
[1641338132490,27.66479,168.38,168.33,4.17245393]
[1641338133191,27.66479,168.38,168.35,4.0]
[1641338134194,7.33992264,168.37,168.35,4.0]
[1641338134990,27.66479,168.38,168.32,4.17245393]
[1641338135192,27.66479,168.38,168.34,4.0]
[1641338135992,7.33962225,168.37,168.34,4.0]
[1641338136594,7.33962225,168.37,168.32,4.17245393]
[1641338137194,7.33962225,168.37,168.34,4.0]
[1641338137794,7.33962225,168.37,168.31,4.17245393]
[1641338137994,7.33962225,168.37,168.36,4.0]
[1641338138495,7.33962225,168.37,168.32,4.17245393]
[1641338139096,7.33962225,168.37,168.35,4.0]
[1641338140699,27.66479,168.38,168.35,4.0]
[1641338142003,27.66479,168.38,168.33,4.17245393]
[1641338142401,27.66479,168.38,168.36,4.0]
[1641338143202,27.66479,168.38,168.37,4.0]
[1641338144202,27.66479,168.38,168.37,9.816]
[1641338144401,51.1262,168.41,168.37,9.816]
[1641338144604,51.1262,168.41,168.37,5.816]
[1641338145303,51.1262,168.41,168.39,4.0]
[1641338145505,27.66479,168.45,168.39,4.0]
[1641338146105,27.66479,168.45,168.37,5.816]
[1641338146306,78.08509,168.45,168.4,4.0]
[1641338146708,78.08509,168.45,168.37,5.816]
[1641338146907,78.08509,168.45,168.41,4.0]
[1641338147108,78.08509,168.45,168.41,10.122]
[1641338147308,33.44240804,168.44,168.41,6.122]
[1641338147507,33.44240804,168.44,168.42,4.0]
[1641338147707,33.44240804,168.44,168.41,6.122]
[1641338147908,33.44240804,168.44,168.37,9.98845393]
[1641338148107,33.44240804,168.44,168.39,4.0]
[1641338148407,33.44240804,168.44,168.37,9.98845393]
[1641338148608,27.66479,168.42,168.4,4.0]
[1641338149008,27.66479,168.42,168.39,4.0]
[1641338149210,27.66479,168.42,168.36,4.17245393]
[1641338149409,27.66479,168.42,168.39,4.0]
[1641338153112,27.66479,168.42,168.38,4.0]
[1641338156016,27.66479,168.42,168.35,4.17245393]
[1641338158519,27.66479,168.42,168.37,4.0]
[1641338158720,27.66479,168.42,168.37,8.883]
[1641338158920,1.70430077,168.41,168.37,8.883]
[1641338162427,1.70430077,168.41,168.37,4.883]
[1641338162626,9.04147358,168.41,168.37,4.883]
[1641338162827,9.04147358,168.41,168.4,4.0]
[1641338163828,1.70430077,168.41,168.4,4.0]
[1641338164627,1.70430077,168.41,168.4,8.0]
[1641338165031,1.70430077,168.41,168.4,4.0]
[1641338165431,0.00010077,168.41,168.4,4.0]
[1641338166331,12.50851518,168.43,168.4,4.0]
[1641338166931,27.66479,168.45,168.4,4.0]
[1641338167534,27.66479,168.45,168.39,27.66479]
[1641338168032,27.66479,168.45,168.44,4.0]
[1641338168235,27.66479,168.45,168.44,10.713]
[1641338169433,40.17330518,168.47,168.44,10.713]
[1641338170237,40.17330518,168.47,168.44,6.713]
[1641338170736,12.50851518,168.47,168.44,10.713]
[1641338170936,12.50851518,168.47,168.44,6.713]
[1641338172038,12.50851518,168.47,168.43,4.0]
[1641338172237,48.2107,168.48,168.43,4.0]
[1641338172439,40.73442066,168.47,168.43,4.0]
[1641338172839,68.39921066,168.47,168.43,4.0]
[1641338173841,7.29201262,168.46,168.43,4.0]
[1641338174743,40.73442066,168.46,168.43,4.0]
[1641338174942,40.73442066,168.46,168.38,4.17245393]
[1641338175843,12.5626712,168.42,168.38,4.17245393]
[1641338176544,40.73442066,168.46,168.38,4.17245393]
[1641338176743,40.73442066,168.46,168.39,4.17245393]
[1641338176744,12.56253163,168.43,168.39,4.17245393]
[1641338177644,12.56253163,168.42,168.39,4.17245393]
[1641338177947,40.73442066,168.46,168.39,4.17245393]
[1641338178246,40.73442066,168.46,168.39,10.30745393]
[1641338179046,12.56247915,168.43,168.39,10.30745393]
[1641338180550,12.56247915,168.43,168.41,4.0]
[1641338180948,12.56247915,168.43,168.41,31.66479]
[1641338182349,12.56247915,168.44,168.41,35.83724393]
[1641338182748,12.56247915,168.44,168.43,4.0]
[1641338182951,12.56247915,168.44,168.43,5.445]
[1641338183348,7.29201262,168.47,168.43,5.445]
[1641338183550,12.51727727,168.47,168.43,5.445]
[1641338184350,12.51727727,168.47,168.43,9.445]
[1641338184550,12.51727727,168.48,168.43,9.445]
[1641338184751,12.51727727,168.48,168.43,5.445]
[1641338186154,12.51727727,168.48,168.43,9.445]
[1641338188051,12.51727727,168.48,168.43,4.0]
[1641338188252,12.51727727,168.48,168.41,55.32958]
[1641338188452,18.32227727,168.48,168.39,28.17245393]
[1641338188652,18.32227727,168.48,168.39,4.17245393]
[1641338188653,22.32227727,168.48,168.39,4.17245393]
[1641338189050,27.66479,168.45,168.39,4.17245393]
[1641338189751,12.51727727,168.43,168.36,4.0]
[1641338190953,40.18206727,168.45,168.36,8.17245393]
[1641338191153,40.18206727,168.45,168.38,27.66479]
[1641338191553,12.51727727,168.45,168.38,27.66479]
[1641338192154,12.51727727,168.45,168.39,4.0]
[1641338192554,58.78587727,168.46,168.4,4.0]
[1641338192754,12.51727727,168.46,168.42,4.0]
[1641338193155,12.51727727,168.46,168.42,27.66479]
[1641338193357,12.51727727,168.47,168.42,27.66479]
[1641338193557,12.51727727,168.47,168.4,8.835]
[1641338194659,12.51727727,168.45,168.41,4.17245393]
[1641338194857,12.51727727,168.45,168.41,8.17245393]
[1641338195558,12.51727727,168.45,168.41,4.17245393]
[1641338195758,7.29025179,168.47,168.41,4.17245393]
[1641338197160,12.56108233,168.44,168.4,4.17245393]
[1641338197762,7.29025179,168.47,168.4,4.17245393]
[1641338198866,12.56222054,168.43,168.39,4.17245393]
[1641338199467,12.56222054,168.42,168.38,4.17245393]
[1641338200268,12.56222054,168.42,168.38,8.17245393]
[1641338201068,7.29025179,168.44,168.38,4.17245393]
[1641338201870,12.56289627,168.42,168.38,4.17245393]
[1641338202571,12.56289627,168.41,168.37,4.17245393]
[1641338203472,12.56287963,168.42,168.38,4.17245393]
[1641338204574,7.29025179,168.44,168.38,4.17245393]
[1641338205275,12.56248851,168.43,168.39,4.17245393]
[1641338207175,12.56248851,168.43,168.39,6.67216957]
[1641338209076,12.56248851,168.43,168.39,4.17245393]
[1641338210277,14.25027048,168.44,168.38,8.17245393]
[1641338210879,14.25027048,168.44,168.38,4.17245393]
[1641338211678,4.0,168.43,168.38,4.17245393]
[1641338212480,12.56248851,168.41,168.34,4.17245393]
[1641338213584,40.22727851,168.41,168.34,4.17245393]
[1641338213783,40.22727851,168.41,168.35,4.17245393]
[1641338213784,12.56248851,168.39,168.35,4.17245393]
[1641338214383,45.6762,168.4,168.35,4.17245393]
[1641338214585,12.56584928,168.38,168.34,4.17245393]
[1641338215382,8.97075432,168.39,168.34,4.17245393]
[1641338215987,12.56592906,168.38,168.34,4.17245393]
[1641338216687,8.97075432,168.39,168.34,4.17245393]
[1641338217489,12.56633851,168.37,168.34,4.17245393]
[1641338218491,8.97075432,168.39,168.34,4.17245393]
[1641338219291,8.97075432,168.39,168.3,12.56473891]
[1641338219292,4.0,168.36,168.33,4.17245393]
[1641338219493,4.0,168.36,168.33,1e-08]
[1641338219694,31.66479,168.35,168.33,1e-08]
[1641338220191,27.66479,168.35,168.33,1e-08]
[1641338220694,14.25613327,168.34,168.27,12.56473891]
[1641338221493,12.56944228,168.33,168.25,15.06014969]
[1641338221793,45.8258,168.32,168.26,4.0]
[1641338221993,45.8258,168.32,168.27,4.0]
[1641338222294,12.56944228,168.33,168.28,4.0]
[1641338222492,1.72803878,168.31,168.28,4.0]
[1641338223095,12.56944228,168.33,168.28,4.0]
[1641338223395,1.72727274,168.34,168.29,2.49541078]
[1641338223895,1.72727274,168.34,168.29,26.49541078]
[1641338224096,1.72727274,168.34,168.29,22.49541078]
[1641338224296,1.72727274,168.34,168.3,4.0]
[1641338224499,40.23423228,168.35,168.3,9.765]
[1641338224696,12.56944228,168.35,168.3,9.765]
[1641338225096,12.56686177,168.36,168.31,2.49541078]
[1641338225697,12.56686177,168.36,168.31,6.49541078]
[1641338226298,12.56686177,168.36,168.32,4.0]
[1641338226497,9.12513201,168.37,168.32,20.0]
[1641338226700,33.44240804,168.41,168.36,24.0]
[1641338226896,33.44240804,168.41,168.4,4.0]
[1641338227097,50.11279934,168.47,168.4,8.574]
[1641338227400,50.11279934,168.47,168.43,4.0]
[1641338227802,12.56102726,168.45,168.42,47.66479]
[1641338228899,41.9888,168.51,168.42,47.66479]
[1641338229099,41.9888,168.51,168.43,4.0]
[1641338229500,41.9888,168.51,168.42,51.66479]
[1641338230301,41.9888,168.51,168.42,47.66479]
[1641338230700,45.9888,168.51,168.42,47.66479]
[1641338230902,4.0,168.49,168.39,51.66479]
[1641338231102,45.9888,168.51,168.39,20.0]
[1641338231301,4.0,168.5,168.39,20.0]
[1641338231902,27.66479,168.47,168.39,20.0]
[1641338233205,4.0,168.45,168.36,20.0]
[1641338233405,42.6426,168.46,168.36,20.0]
[1641338233805,42.6426,168.46,168.37,15.54003638]
[1641338234005,27.66479,168.42,168.37,15.54003638]
[1641338234406,27.66479,168.42,168.36,20.0]
[1641338235107,27.66479,168.42,168.34,4.0]
[1641338236709,88.144,168.46,168.34,19.54003638]
[1641338236908,88.144,168.46,168.34,24.67003638]
[1641338237309,88.144,168.46,168.35,4.0]
[1641338237911,27.66479,168.44,168.35,4.0]
[1641338238209,27.66479,168.44,168.34,24.67003638]
[1641338238409,27.66479,168.44,168.35,4.0]
[1641338239709,27.66479,168.44,168.34,24.67003638]
[1641338239910,27.66479,168.44,168.34,19.54003638]
[1641338241113,27.66479,168.44,168.35,4.0]
[1641338241315,27.66479,168.44,168.34,23.76803638]
[1641338241613,27.66479,168.44,168.35,4.0]
[1641338242315,27.66479,168.44,168.38,4.0]
[1641338242514,27.66479,168.44,168.38,9.1]
[1641338242714,27.66479,168.44,168.38,5.1]
[1641338242914,20.96528553,168.44,168.4,4.0]
[1641338243216,20.96528553,168.44,168.41,4.0]
[1641338244617,20.96528553,168.44,168.4,4.0]
[1641338246720,20.96528553,168.44,168.39,20.0]
[1641338246920,20.96528553,168.44,168.4,10.99036358]
[1641338247620,20.96528553,168.44,168.37,4.0]
[1641338247820,20.96528553,168.44,168.38,33.4946116]
[1641338249726,20.96528553,168.44,168.36,53.4946116]
[1641338250327,20.96528553,168.44,168.36,30.99036358]
[1641338253232,20.96528553,168.44,168.39,20.0]
[1641338253632,20.96528553,168.44,168.36,30.99036358]
[1641338254336,20.96528553,168.44,168.36,20.0]
[1641338256234,20.96528553,168.44,168.4,20.0]
[1641338256434,27.66479,168.47,168.4,24.438]
[1641338256635,27.66479,168.47,168.4,35.42836358]
[1641338256841,27.66479,168.47,168.4,39.42836358]
[1641338257438,27.66479,168.47,168.41,23.55072403]
[1641338258940,27.66479,168.47,168.41,12.56036045]
[1641338259542,27.66479,168.47,168.41,23.55072403]
[1641338259741,27.66479,168.47,168.41,30.05572403]
[1641338261646,27.66479,168.47,168.42,12.56036045]
[1641338263147,31.66479,168.47,168.42,6.045e-05]
[1641338263349,31.66479,168.47,168.41,10.99036358]
[1641338263548,27.66479,168.47,168.41,10.99036358]
[1641338263749,31.66479,168.47,168.41,10.99036358]
[1641338264048,31.66479,168.47,168.38,33.4946116]
[1641338264049,5.97035691,168.46,168.35,30.99036358]
[1641338264250,56.71735691,168.46,168.35,30.99036358]
[1641338264649,50.747,168.46,168.35,30.99036358]
[1641338264850,50.747,168.46,168.35,34.99036358]
[1641338265450,50.747,168.46,168.36,14.99036358]
[1641338265650,50.747,168.46,168.36,16.56536358]
[1641338266650,50.747,168.46,168.36,44.23015358]
[1641338266850,50.747,168.46,168.36,16.56536358]
[1641338267252,1.19172578,168.45,168.37,13.98604134]
[1641338267951,1.19172578,168.45,168.38,2.99567776]
[1641338268852,1.19172578,168.45,168.37,2.99567776]
[1641338270754,27.66479,168.44,168.37,2.99567776]
[1641338271956,50.747,168.46,168.37,2.99567776]
[1641338272158,50.747,168.46,168.38,20.0]
[1641338272357,1.30421933,168.45,168.38,20.0]
[1641338272758,1.30421933,168.45,168.38,47.66479]
[1641338273661,1.30421933,168.45,168.39,2.99567776]
[1641338274060,1.30421933,168.45,168.4,2.99567776]
[1641338274761,1.30421933,168.45,168.41,2.99567776]
[1641338275960,1.30421933,168.45,168.42,2.99567776]
[1641338276761,1.30421933,168.45,168.39,5.812]
[1641338277263,1.30421933,168.45,168.4,2.88276789]
[1641338277963,1.30421933,168.45,168.4,6.789e-05]
[1641338278166,4.0,168.42,168.35,33.4946116]
[1641338278464,4.0,168.41,168.35,33.4946116]
[1641338278665,4.0,168.4,168.35,33.4946116]
[1641338278866,27.66479,168.36,168.35,33.4946116]
[1641338279065,33.97479,168.36,168.35,33.4946116]
[1641338279267,33.97479,168.36,168.29,20.0]
[1641338280370,33.97479,168.36,168.32,4.18902289]
[1641338281272,27.66479,168.36,168.32,4.18902289]
[1641338283272,27.66479,168.36,168.32,9.46402289]
[1641338283773,27.66479,168.36,168.34,4.18902289]
[1641338285675,27.66479,168.36,168.33,4.18902289]
[1641338286877,27.66479,168.36,168.34,4.18902289]
[1641338288578,52.2093,168.4,168.33,4.18902289]
[1641338289280,27.66479,168.38,168.33,4.18902289]
[1641338289680,27.66479,168.38,168.34,4.18902289]
[1641338290681,27.66479,168.38,168.32,4.18902289]
[1641338291982,31.66479,168.38,168.32,4.18902289]
[1641338292381,27.66479,168.38,168.32,4.18902289]
[1641338292581,27.66479,168.38,168.3,4.18902289]
[1641338293284,12.56735711,168.34,168.3,4.18902289]
[1641338293484,40.23214711,168.34,168.3,4.18902289]
[1641338295989,33.48379,168.34,168.31,4.18902289]
[1641338296788,12.56735711,168.33,168.29,4.18902289]
[1641338298195,12.56735711,168.32,168.28,4.18902289]
[1641338299495,27.66479,168.31,168.28,4.18902289]
[1641338299695,40.23214711,168.31,168.27,4.18902289]
[1641338300097,49.41914711,168.31,168.23,12.56735711]
[1641338300395,4.0,168.3,168.23,12.56735711]
[1641338300696,12.56735711,168.29,168.21,12.56735711]
[1641338301497,27.66479,168.28,168.21,32.56735711]
[1641338301797,27.66479,168.28,168.22,12.56735711]
[1641338301999,27.66479,168.28,168.22,17.50835711]
[1641338302801,27.66479,168.28,168.22,4.941]
[1641338303400,27.66479,168.28,168.22,17.50835711]
[1641338303600,27.66479,168.28,168.22,26.8642462]
[1641338305004,27.66479,168.28,168.22,17.50835711]
[1641338305204,20.96016286,168.28,168.22,17.50835711]
[1641338306105,20.96016286,168.28,168.22,4.941]
[1641338306506,20.96016286,168.28,168.21,12.56735711]
[1641338306705,20.96016286,168.28,168.2,21.9232462]
[1641338308408,20.96016286,168.28,168.21,12.56735711]
[1641338308707,7.50613219,168.3,168.21,18.94935711]
[1641338309109,36.40479,168.31,168.22,12.56735711]
[1641338310508,36.40479,168.31,168.23,12.56735711]
[1641338311308,36.40479,168.31,168.22,21.9232462]
[1641338312409,27.66479,168.31,168.22,21.9232462]
[1641338312809,27.66479,168.31,168.22,12.56735711]
[1641338313609,7.66617941,168.3,168.22,12.56735711]
[1641338314212,35.33096941,168.31,168.22,12.56735711]
[1641338314413,35.33096941,168.31,168.22,16.70035711]
[1641338314813,7.66617941,168.3,168.22,4.133]
[1641338315513,35.33096941,168.31,168.21,21.9232462]
[1641338316013,7.66617941,168.3,168.22,12.56735711]
[1641338317515,35.33096941,168.31,168.22,12.56735711]
[1641338318015,7.66617941,168.3,168.22,12.56735711]
[1641338318716,1.82399023,168.31,168.22,2.35876152]
[1641338318916,27.66479,168.3,168.22,2.35876152]
[1641338319317,1.82399023,168.29,168.22,2.35876152]
[1641338320220,1.82399023,168.29,168.21,2.35876152]
[1641338321519,14.372172,168.29,168.21,2.35876152]
[1641338321920,50.6853,168.28,168.21,2.35876152]
[1641338322820,1.82399023,168.27,168.21,2.35876152]
[1641338324523,1.82399023,168.27,168.23,24.0]
[1641338324723,1.82399023,168.29,168.26,20.0]
[1641338325924,14.372172,168.32,168.24,27.66479]
[1641338326125,67.290672,168.32,168.24,27.66479]
[1641338326826,1.82399023,168.31,168.25,2.35881149]
[1641338327427,5.82399023,168.31,168.25,2.35881149]
[1641338327631,4.0,168.3,168.22,2.35881149]
[1641338327829,22.949172,168.31,168.22,2.35881149]
[1641338328029,18.949172,168.31,168.22,2.35881149]
[1641338328330,12.54818177,168.28,168.21,24.02089307]
[1641338328830,40.21297177,168.28,168.21,24.02089307]
[1641338329730,1.82399023,168.27,168.21,2.35881149]
[1641338330329,1.82399023,168.27,168.21,24.02089086]
[1641338332836,7.21499023,168.27,168.21,24.02089086]
[1641338333037,27.66479,168.24,168.21,24.02089086]
[1641338333936,1.82399023,168.23,168.21,12.56735711]
[1641338334137,5.92899023,168.23,168.18,2.35881149]
[1641338334936,1.82399023,168.22,168.17,2.35881149]
[1641338335739,27.66479,168.24,168.16,47.66479]
[1641338336941,27.66479,168.24,168.16,27.66479]
[1641338339950,1.81894694,168.23,168.16,27.66479]
[1641338340850,27.66479,168.24,168.16,27.66479]
[1641338341556,4.0,168.22,168.16,27.66479]
[1641338341853,6.75,168.22,168.16,27.66479]
[1641338342352,57.1535,168.22,168.16,27.66479]
[1641338346961,57.1535,168.22,168.12,52.242]
[1641338348164,57.1535,168.22,168.15,27.66479]
[1641338348565,14.37777103,168.21,168.16,2.34918687]
[1641338350568,1.82958926,168.21,168.15,27.66479]
[1641338351375,1.82958926,168.21,168.16,22.34918687]
[1641338352173,1.82958926,168.22,168.17,2.34918687]
[1641338353073,1.82958926,168.22,168.16,2.34918687]
[1641338353374,7.36758926,168.22,168.16,2.34918687]
[1641338353775,11.36758926,168.22,168.16,2.34918687]
[1641338353973,4.0,168.2,168.16,2.34918687]
[1641338354174,7.36758926,168.22,168.16,2.34918687]
[1641338354373,27.66479,168.19,168.16,2.34918687]
[1641338354974,27.66479,168.19,168.14,12.56735711]
[1641338354975,42.04256103,168.19,168.13,2.34918687]
[1641338355574,4.0,168.16,168.13,2.34918687]
[1641338355775,4.0,168.15,168.1,12.56735711]
[1641338356174,4.0,168.15,168.09,12.56735711]
[1641338356378,31.66479,168.15,168.09,12.56735711]
[1641338356574,27.66479,168.15,168.09,12.56735711]
[1641338357581,4.0,168.11,168.05,33.52003106]
[1641338357784,4.0,168.1,168.05,33.52003106]
[1641338357982,4.0,168.1,168.07,2.35993705]
[1641338358185,4.0,168.1,168.05,12.57099771]
[1641338358380,27.66479,168.06,168.05,12.57099771]
[1641338358580,31.77279,168.06,168.01,33.60003106]
[1641338359380,4.108,168.06,168.01,33.60003106]
[1641338359583,27.66479,168.08,168.01,33.60003106]
[1641338359779,27.66479,168.08,168.01,0.08]
[1641338360580,27.66479,168.08,168.01,5.498]
[1641338360782,33.52003106,168.1,168.03,20.0]
[1641338361081,33.52003106,168.11,168.02,4.19137001]
[1641338361280,4.35,168.1,168.02,4.19137001]
[1641338361581,4.0,168.06,168.02,4.19137001]
[1641338361780,4.478,168.06,168.01,4.27137001]
[1641338362479,4.478,168.06,168.02,20.0]
[1641338362680,33.52003106,168.07,168.02,20.0]
[1641338362880,33.52003106,168.07,168.01,4.87]
[1641338363281,37.52003106,168.1,168.01,9.06137001]
[1641338363481,6.734,168.07,168.01,9.06137001]
[1641338363682,6.734,168.07,168.01,4.27137001]
[1641338364482,6.734,168.07,168.01,0.08]
[1641338365081,40.25403106,168.07,168.01,0.08]
[1641338366881,6.734,168.07,168.01,0.08]
[1641338367683,6.734,168.07,168.01,4.27137001]
[1641338368382,6.734,168.07,168.02,4.19137001]
[1641338368582,33.52003106,168.1,168.02,4.19137001]
[1641338369185,33.52003106,168.11,168.03,4.19137001]
[1641338370184,37.52003106,168.11,168.03,4.19137001]
[1641338370584,33.52003106,168.11,168.03,4.19137001]
[1641338371187,37.52003106,168.11,168.03,4.19137001]
[1641338372185,4.0,168.1,168.03,4.19137001]
[1641338372385,10.15,168.1,168.03,4.19137001]
[1641338372585,27.66479,168.08,168.03,4.19137001]
[1641338372787,27.66479,168.08,168.02,4.19137001]
[1641338373486,61.18482106,168.08,168.01,0.08]
[1641338374486,61.18482106,168.08,168.01,4.27137001]
[1641338375388,33.52003106,168.08,168.01,4.27137001]
[1641338375790,33.52003106,168.09,168.01,4.27137001]
[1641338376190,33.52003106,168.09,168.01,8.46437001]
[1641338376390,4.19523935,168.03,168.01,8.46437001]
[1641338376591,4.19523935,168.03,168.02,4.19137001]
[1641338376991,33.52003106,168.1,168.02,4.19137001]
[1641338377793,33.52003106,168.1,168.01,0.08]
[1641338377992,8.67418072,168.1,168.01,0.08]
[1641338378391,33.52003106,168.12,168.01,0.08]
[1641338378591,4.0,168.14,168.01,0.08]
[1641338378792,27.66479,168.12,168.01,0.08]
[1641338380393,27.66479,168.12,168.03,20.0]
[1641338380795,27.66479,168.12,168.04,27.66479]
[1641338381794,31.66479,168.12,168.01,0.08]
[1641338381997,58.2365,168.11,168.01,0.08]
[1641338382196,62.91051862,168.11,168.01,0.08]
[1641338382396,66.91051862,168.11,168.01,0.08]
[1641338382596,62.91051862,168.11,168.01,0.08]
[1641338383095,8.67401862,168.1,168.01,8.28580127]
[1641338383294,12.87501862,168.1,168.01,8.28580127]
[1641338383495,12.87501862,168.1,168.02,24.0]
[1641338384398,4.201,168.1,168.02,24.0]
[1641338384600,27.66479,168.12,168.02,24.0]
[1641338384796,33.52003106,168.14,168.05,20.0]
[1641338385297,8.57085392,168.14,168.05,20.0]
[1641338386096,8.57085392,168.14,168.04,27.66479]
[1641338386698,42.09088498,168.14,168.04,27.66479]
[1641338387197,42.09088498,168.14,168.05,20.0]
[1641338387796,8.57085392,168.14,168.05,20.0]
[1641338388897,12.58225741,168.11,168.05,20.0]
[1641338389097,12.58225741,168.11,168.04,27.66479]
[1641338389701,5.502,168.12,168.04,27.66479]